bitfinex-derivatives/quotes_ETHF0:USTF0_20251103
["timestamp","ask_amount","ask_price","bid_price","bid_amount"]
[1762132624672,0.3062,3860.3,3860.2,3.20999632]
[1762132625170,0.1819,3860.4,3860.2,3.20999632]
[1762132626668,0.64819,3860.4,3860.2,3.20999632]
[1762132626866,0.1819,3860.4,3860.2,3.20999632]
[1762132627172,0.64819,3860.4,3860.2,3.20999632]
[1762132627965,0.1819,3860.4,3860.2,3.20999632]
[1762132628371,0.18521845,3861.0,3860.6,0.46625]
[1762132628572,0.18521845,3861.0,3860.9,3.2078]
[1762132631177,0.49141845,3861.0,3860.9,3.2078]
[1762132631474,0.3062,3860.6,3860.5,3.2078]
[1762132631674,0.77246,3860.6,3860.5,3.2078]
[1762132632773,0.46626,3860.6,3860.5,3.2078]
[1762132633072,0.46625,3860.7,3860.6,0.2938]
[1762132633376,0.00331845,3861.0,3860.9,0.2938]
[1762132633575,0.00331845,3861.0,3860.9,3.5016]
[1762132635475,0.56871845,3861.0,3860.9,3.2078]
[1762132637171,0.21021845,3861.0,3860.9,3.2078]
[1762132637572,0.21021845,3861.0,3860.9,3.5556]
[1762132637573,0.00331845,3861.0,3860.9,3.5556]
[1762132639281,0.21021845,3861.0,3860.9,3.2078]
[1762132641082,0.56871845,3861.0,3860.9,3.2078]
[1762132641281,0.56871845,3861.0,3860.9,2.65367]
[1762132641779,0.82476,3860.6,3860.5,3.2078]
[1762132641971,0.46626,3860.6,3860.5,3.2078]
[1762132642374,0.46626,3860.6,3860.5,3.5556]
[1762132643280,0.21021845,3861.0,3860.5,3.5556]
[1762132648885,0.46626,3860.7,3860.6,0.3826]
[1762132649086,0.46626,3860.7,3860.5,3.2078]
[1762132649992,0.46626,3860.6,3860.5,0.3826]
[1762132650781,0.46626,3860.6,3860.5,3.5904]
[1762132650986,0.46626,3860.6,3860.5,0.3826]
[1762132651880,0.46628,3860.4,3860.3,0.92249055]
[1762132652085,0.46628,3860.4,3860.2,0.00219632]
[1762132652086,0.3463,3860.3,3860.2,0.00219632]
[1762132653485,0.46628,3860.4,3860.3,0.3826]
[1762132653785,0.21021845,3861.0,3860.6,0.84886]
[1762132654090,0.21021845,3861.0,3860.8,0.3826]
[1762132654384,0.00331845,3861.0,3860.9,0.3826]
[1762132655377,12.6267,3862.0,3861.1,0.46619]
[1762132655578,0.22814337,3861.9,3861.4,3.2078]
[1762132655778,0.22814337,3861.8,3861.4,3.2078]
[1762132655993,0.1819,3862.0,3861.6,0.3826]
[1762132656188,0.1819,3862.0,3861.9,0.3826]
[1762132656488,0.00186865,3862.0,3861.9,0.3826]
[1762132661685,0.21026865,3862.0,3861.9,0.3826]
[1762132661888,0.00186865,3862.0,3861.9,0.3826]
[1762132662485,0.3463,3861.9,3861.8,3.2078]
[1762132662786,0.2084,3861.5,3861.4,3.5904]
[1762132664488,0.5547,3861.5,3861.4,3.2078]
[1762132665383,0.3407,3861.1,3861.0,3.2078]
[1762132666486,0.2084,3861.5,3861.0,3.2078]
[1762132666699,0.3407,3861.1,3861.0,3.2078]
[1762132671901,0.46617,3861.4,3861.0,3.558]
[1762132672296,0.67456,3861.5,3861.0,3.558]
[1762132672600,0.3407,3861.1,3861.0,3.2078]
[1762132673906,0.2084,3861.5,3861.0,3.558]
[1762132674402,0.46618,3861.3,3861.0,3.558]
[1762132674602,0.67456,3861.5,3861.0,3.558]
[1762132674995,0.2084,3861.5,3861.0,3.558]
[1762132676503,0.80696,3860.6,3860.5,3.2078]
[1762132676706,0.807,3860.3,3860.2,0.00219632]
[1762132677607,0.3407,3860.3,3860.2,0.00219632]
[1762132678103,0.1958,3860.5,3860.2,0.35239632]
[1762132678307,0.1958,3860.5,3860.4,0.3502]
[1762132679506,0.5365,3860.5,3860.2,0.00219632]
[1762132680904,0.1958,3860.5,3860.4,0.3502]
[1762132681603,0.5365,3860.5,3860.2,0.00219632]
[1762132682108,0.3407,3860.3,3860.2,0.00219632]
[1762132682897,0.3407,3860.3,3859.4,0.3502]
[1762132682898,0.1958,3859.5,3859.4,0.3502]
[1762132683104,0.5365,3859.5,3859.4,0.3502]
[1762132683307,1.00289,3859.5,3859.3,3.2078]
[1762132683505,0.3407,3859.4,3859.3,3.2078]
[1762132683896,0.3407,3859.4,3859.3,3.2101771]
[1762132685513,0.1958,3859.5,3859.4,0.3502]
[1762132687301,7.8915,3860.5,3859.9,0.3502]
[1762132687302,3.2078,3860.4,3859.9,0.3502]
[1762132687508,3.67409,3860.4,3859.9,0.3502]
[1762132687902,3.67409,3860.4,3859.3,3.2101771]
[1762132687903,0.1958,3859.5,3859.3,3.2101771]
[1762132688103,0.3407,3859.4,3859.3,3.2101771]
[1762132689608,0.3407,3859.4,3859.3,0.0023771]
[1762132691607,4.74260665,3859.5,3859.3,0.0023771]
[1762132691809,5.20900665,3859.5,3859.3,0.0023771]
[1762132692011,0.1958,3859.5,3859.4,0.3502]
[1762132692511,3.86994,3860.0,3859.4,0.3502]
[1762132693217,0.3407,3859.4,3859.3,0.0023771]
[1762132694315,3.4036,3859.5,3859.4,0.3502]
[1762132694715,3.67415,3859.9,3859.4,0.3502]
[1762132694908,3.2078,3859.9,3859.4,0.3502]
[1762132696109,3.2078,3859.9,3859.8,0.3502]
[1762132696810,0.182,3859.5,3859.3,0.0023771]
[1762132698514,0.3209,3859.4,3859.3,0.0023771]
[1762132706426,0.182,3859.5,3859.4,0.72791]
[1762132707222,3.2078,3859.9,3859.4,0.72791]
[1762132707420,3.2078,3859.9,3859.5,0.46639]
[1762132707924,3.2078,3859.9,3859.6,0.46638]
[1762132708527,3.2078,3860.4,3859.9,0.2615]
[1762132708726,0.1958,3861.0,3860.8,0.2615]
[1762132708921,0.1958,3861.0,3860.5,3.2078]
[1762132709324,0.1958,3861.0,3860.8,0.46623]
[1762132709528,0.1812,3861.5,3860.9,3.4693]
[1762132709925,0.4865,3861.0,3860.9,3.2078]
[1762132710322,0.4865,3861.0,3860.6,0.46626]
[1762132711124,0.4865,3861.0,3860.5,3.2078]
[1762132711527,0.38763372,3861.5,3860.5,3.2078]
[1762132711528,0.1812,3861.5,3860.9,3.67402]
[1762132711730,0.1812,3861.5,3861.0,0.46621]
[1762132712432,0.1812,3861.5,3860.9,3.2078]
[1762132712628,3.2078,3861.8,3861.7,0.2615]
[1762132712930,0.18306865,3862.0,3861.9,0.2615]
[1762132714219,0.00186865,3862.0,3861.9,0.2615]
[1762132714424,0.48836865,3862.0,3861.8,3.2078]
[1762132714729,0.3053,3861.9,3861.8,3.2078]
[1762132715232,0.18306865,3862.0,3861.9,0.2615]
[1762132715630,0.00186865,3862.0,3861.9,0.2615]
[1762132716528,0.19776444,3863.0,3862.9,0.2596]
[1762132716731,0.64718,3863.0,3862.4,3.2078]
[1762132716933,0.1812,3862.5,3862.4,3.4674]
[1762132717329,0.1812,3863.0,3862.4,3.4674]
[1762132717529,0.18359413,3863.0,3862.4,3.46940621]
[1762132717728,0.64957413,3863.0,3862.4,3.46940621]
[1762132718230,0.18359413,3863.0,3862.4,3.93544621]
[1762132718525,0.4865,3862.5,3862.4,3.20980621]
[1762132718730,2.0175557,3862.5,3862.4,0.00200621]
[1762132720633,0.4865,3862.5,3862.4,0.00200621]
[1762132720832,0.1812,3862.5,3862.4,0.00200621]
[1762132721335,0.1812,3862.5,3862.4,3.46940621]
[1762132721729,0.4865,3862.5,3862.4,3.20980621]
[1762132724340,0.1812,3862.5,3862.4,3.46940621]
[1762132725035,0.46599,3862.9,3862.8,0.2596]
[1762132725336,0.18359413,3863.0,3862.8,0.2596]
[1762132725728,0.1725,3862.5,3862.4,3.20980621]
[1762132725937,0.4511,3862.5,3862.4,3.20980621]
[1762132726133,0.1725,3862.5,3862.4,3.41210621]
[1762132726636,0.4511,3862.5,3862.4,3.20980621]
[1762132727530,0.1725,3862.5,3862.4,3.20980621]
[1762132727833,0.18359413,3863.0,3862.4,3.20980621]
[1762132727834,0.18359413,3863.0,3862.4,3.41210621]
[1762132728035,0.1725,3862.5,3862.4,3.41210621]
[1762132728338,0.1725,3862.5,3862.4,3.20980621]
[1762132730435,0.1725,3862.5,3862.4,3.41210621]
[1762132731139,0.91714,3862.5,3862.4,0.00200621]
[1762132731737,0.46611,3861.9,3861.5,3.2078]
[1762132732034,0.46613,3861.8,3861.5,3.2078]
[1762132732242,0.2786,3861.6,3861.5,3.2078]
[1762132732433,0.1725,3862.0,3861.7,0.2043]
[1762132732740,0.1725,3862.0,3861.7,0.20653099]
[1762132733233,0.6386,3862.0,3861.7,0.20653099]
[1762132735842,0.1725,3862.0,3861.7,0.20653099]
[1762132736438,0.2786,3861.8,3861.7,0.00223099]
[1762132737038,1.8096557,3861.8,3861.7,0.00223099]
[1762132737437,2.03869958,3861.8,3861.7,0.00223099]
[1762132740744,2.03869958,3861.8,3860.6,3.842]
[1762132740745,0.2786,3860.7,3860.6,3.2078]
[1762132740942,0.2786,3860.3,3860.2,3.2078]
[1762132741145,0.2786,3859.9,3859.8,3.2078]
[1762132741443,0.1725,3859.5,3859.4,0.2043]
[1762132741744,0.17434122,3859.5,3859.4,0.20701315]
[1762132741934,0.17434122,3859.5,3859.4,0.00271315]
[1762132741935,0.45294122,3859.5,3859.4,0.00271315]
[1762132742328,0.68190844,3859.5,3859.4,0.00271315]
[1762132743141,0.45294122,3859.5,3859.4,0.00271315]
[1762132744740,0.2786,3858.4,3857.8,3.67903068]
[1762132744944,0.2786,3857.9,3857.8,3.67903068]
[1762132745139,0.7452,3857.9,3857.8,0.47123068]
[1762132745645,0.7452,3857.9,3857.8,0.47316503]
[1762132746542,0.1725,3857.5,3856.8,3.2078]
[1762132746750,0.46668,3857.3,3856.8,3.2078]
[1762132746947,0.46669,3857.1,3856.3,3.2078]
[1762132747145,3.3803,3857.5,3856.3,3.2078]
[1762132747146,2.1702757,3857.0,3856.3,3.2078]
[1762132747442,1.7035557,3857.0,3856.3,3.2078]
[1762132747649,0.1725,3857.0,3856.3,3.20997608]
[1762132748043,0.1725,3857.0,3856.3,3.67675608]
[1762132748651,0.46674,3856.8,3856.3,3.20997608]
[1762132748847,0.2786,3856.4,3856.3,0.00217608]
[1762132750853,0.00263202,3856.8,3856.7,0.2716]
[1762132751053,0.00263202,3856.8,3856.7,3.4794]
[1762132751843,0.00263202,3856.8,3856.7,3.2078]
[1762132752450,0.00263202,3856.8,3856.7,3.4794]
[1762132753946,0.1725,3858.0,3856.8,0.164]
[1762132754146,3.3803,3858.0,3857.2,0.46667]
[1762132754348,3.84689,3858.0,3857.1,3.2078]
[1762132754555,3.3803,3858.0,3857.1,3.2078]
[1762132754760,0.2786,3857.2,3857.1,3.2078]
[1762132755448,0.1725,3857.4,3857.1,3.2078]
[1762132755643,0.1725,3857.4,3857.1,3.67449]
[1762132756154,1.5310557,3857.7,3857.1,3.67449]
[1762132756348,3.38226936,3858.0,3857.3,0.46665]
[1762132756754,3.38226936,3858.0,3857.6,0.46662]
[1762132756949,3.38226936,3858.0,3857.9,3.4657]
[1762132756950,0.00196936,3858.0,3857.9,3.4657]
[1762132757155,0.16046936,3858.0,3857.5,3.2078]
[1762132757359,0.16046936,3858.0,3857.7,0.46661]
[1762132757550,0.16046936,3858.0,3857.5,3.2078]
[1762132758153,0.16046936,3858.0,3857.7,0.46661]
[1762132758348,0.00196936,3858.0,3857.9,3.4657]
[1762132758746,0.00196936,3858.0,3857.9,7.3077]
[1762132760855,0.46644,3859.2,3858.5,0.46651]
[1762132761158,0.1585,3859.2,3858.5,3.2078]
[1762132761360,0.1585,3859.2,3858.0,3.9846]
[1762132761361,0.2648,3858.2,3858.1,3.2078]
[1762132761956,0.26776967,3858.2,3858.1,3.2078]
[1762132762155,0.00296967,3858.2,3858.1,3.2078]
[1762132762954,0.00296967,3858.2,3858.1,3.4657]
[1762132763156,0.26776967,3858.2,3858.1,3.2078]
[1762132763354,0.00296967,3858.2,3858.1,3.2078]
[1762132763655,0.00296967,3858.2,3858.1,3.4657]
[1762132765959,0.62494,3859.2,3858.6,0.4665]
[1762132766162,0.62494,3859.2,3858.7,3.2078]
[1762132766458,0.62494,3859.2,3858.3,3.2078]
[1762132766459,0.1501,3858.5,3858.3,3.2078]
[1762132766653,0.2521,3858.4,3858.3,3.2078]
[1762132767260,0.25416796,3858.4,3858.3,3.2078]
[1762132767754,0.25416796,3858.4,3857.9,3.2078]
[1762132767755,0.86878,3858.0,3857.9,3.2078]
[1762132767955,0.4022,3858.0,3857.9,3.2078]
[1762132768556,1.341209,3858.1,3857.9,3.2078]
[1762132769963,0.00206796,3858.4,3858.0,0.2507]
[1762132771359,0.46859796,3858.4,3858.0,0.2507]
[1762132771766,0.2521,3858.1,3857.9,3.2078]
[1762132772862,0.00206796,3858.4,3857.9,3.2078]
[1762132773162,0.00206796,3858.4,3857.9,3.67438]
[1762132773359,0.00206796,3858.4,3858.3,0.2507]
[1762132775969,0.00206796,3858.4,3858.3,3.92504]
[1762132777566,0.00206796,3858.4,3858.3,3.4585]
[1762132778062,0.25416796,3858.4,3858.3,3.2078]
[1762132779760,0.48349294,3858.4,3858.3,3.2078]
[1762132780969,1.82470194,3858.4,3858.3,3.2078]
[1762132782762,1.57260194,3858.4,3858.3,3.4585]
[1762132783068,2.29124194,3858.4,3857.8,3.2078]
[1762132783270,0.69586498,3858.3,3857.8,3.2078]
[1762132783469,0.22932498,3858.2,3857.8,3.2078]
[1762132784071,0.22932498,3858.2,3858.1,0.2507]
[1762132784567,0.2521,3858.2,3858.1,0.2507]
[1762132784770,0.48142498,3858.2,3858.1,0.2507]
[1762132785564,0.48142498,3858.2,3857.8,3.2078]
[1762132785764,0.2521,3858.2,3857.8,3.2078]
[1762132786171,0.23004548,3858.1,3858.0,0.2313]
[1762132786471,0.46656,3858.2,3858.0,0.2313]
[1762132786870,0.4753382,3858.1,3858.0,0.2313]
[1762132787176,0.139,3858.0,3857.8,3.2078]
[1762132787363,0.46655,3858.3,3857.9,0.2313]
[1762132787569,0.23005024,3858.2,3858.1,0.2313]
[1762132787767,0.47535024,3858.2,3857.8,3.2078]
[1762132787973,0.46656,3858.1,3857.8,3.2078]
[1762132788373,0.46655,3858.3,3858.0,0.2313]
[1762132788573,0.46655,3858.3,3857.8,3.2078]
[1762132788574,0.2300669,3858.2,3858.1,0.2313]
[1762132788774,0.4753669,3858.2,3858.1,0.2313]
[1762132790377,0.2300669,3858.2,3858.1,0.2313]
[1762132790878,0.139,3858.0,3857.9,3.2078]
[1762132791070,0.46654,3858.3,3857.9,3.4391]
[1762132791267,0.46654,3858.3,3858.1,0.2313]
[1762132792877,0.46654,3858.3,3858.2,0.2313]
[1762132793074,0.23007595,3858.3,3858.2,0.2313]
[1762132793982,0.46655,3858.2,3857.9,3.2078]
[1762132794480,0.2453,3858.2,3858.1,0.2313]
[1762132794782,0.71186,3858.2,3857.9,3.2078]
[1762132794982,0.2453,3858.2,3857.9,3.2078]
[1762132795576,0.46655,3858.3,3858.1,0.2313]
[1762132795783,1.34327696,3858.4,3858.3,0.2313]
[1762132795976,0.23218921,3858.4,3858.3,3.90564]
[1762132796279,0.23218921,3858.4,3858.3,0.2313]
[1762132796674,0.47748921,3858.4,3858.3,0.2313]
[1762132796877,0.23218921,3858.4,3857.9,4.13029055]
[1762132797071,0.46859796,3858.4,3857.9,4.59687055]
[1762132797276,0.46654,3858.3,3858.2,0.2313]
[1762132797583,0.00206796,3858.4,3858.3,0.2313]
[1762132797883,0.23228738,3858.4,3858.3,0.2313]
[1762132798182,0.47758738,3858.4,3858.3,0.2313]
[1762132798376,1.35394436,3858.4,3858.3,0.2313]
[1762132798879,1.10864436,3858.4,3857.9,4.13029055]
[1762132799080,0.87842494,3858.4,3858.3,0.2313]
[1762132799378,1.10866723,3858.4,3858.3,0.2313]
[1762132800981,1.35396723,3858.4,3858.3,0.2313]
[1762132801381,0.46656,3858.2,3857.9,4.13029055]
[1762132801572,1.12165698,3858.0,3857.9,4.36159055]
[1762132801781,2.13701396,3858.0,3857.9,3.2078]
[1762132803082,2.3672062,3858.0,3857.9,3.2078]
[1762132803382,2.3672062,3858.0,3857.8,0.47123068]
[1762132803383,0.71189,3857.9,3857.8,0.47123068]
[1762132803574,0.94208224,3857.9,3857.8,0.47123068]
[1762132804378,1.48797675,3857.9,3857.8,0.47123068]
[1762132805088,0.71197,3857.2,3857.1,3.2078]
[1762132805383,2.46468396,3857.2,3857.1,3.2078]
[1762132805775,0.2453,3856.7,3856.6,3.2078]
[1762132806087,1.12165698,3856.7,3856.6,3.2078]
[1762132806281,0.71207,3856.4,3856.3,0.00217608]
[1762132807186,0.71207,3856.4,3856.3,0.23347608]
[1762132807382,0.71207,3856.4,3856.3,0.00217608]
[1762132807882,3.3468,3857.0,3856.4,0.2313]
[1762132808078,3.3468,3857.0,3856.3,0.00217608]
[1762132808079,1.34244091,3857.0,3856.8,0.2313]
[1762132808278,1.34244091,3857.3,3857.0,0.2313]
[1762132808484,7.51265,3857.4,3857.3,0.2313]
[1762132808485,7.046,3857.4,3857.3,0.2313]
[1762132808671,0.139,3857.5,3857.0,3.2078]
[1762132808872,1.34244091,3857.3,3857.2,0.2313]
[1762132809377,0.46661,3857.7,3857.2,0.2313]
[1762132809581,1.34244091,3857.8,3857.2,0.2313]
[1762132809781,0.46662,3857.7,3857.2,0.2313]
[1762132809986,9.21112469,3858.1,3857.9,0.2313]
[1762132810280,0.139,3858.0,3857.5,0.1403]
[1762132810479,0.46659,3857.9,3857.5,0.1403]
[1762132810680,0.3843,3857.5,3857.4,3.2078]
[1762132811184,0.3843,3857.5,3856.9,0.4667]
[1762132811185,0.46664,3857.4,3856.9,0.4667]
[1762132811990,0.46666,3857.3,3856.8,3.2078]
[1762132812182,0.46668,3857.2,3857.1,0.2313]
[1762132812376,0.2453,3856.9,3856.8,3.2078]
[1762132812682,0.71202,3856.8,3856.7,3.842]
[1762132812884,1.34244091,3856.9,3856.4,3.2078]
[1762132812885,0.46674,3856.6,3856.4,3.2078]
[1762132813074,0.46674,3856.6,3856.5,0.2313]
[1762132813781,0.46672,3856.8,3856.5,0.2313]
[1762132814086,0.46672,3856.8,3856.7,0.2313]
[1762132815780,0.6057,3857.0,3856.8,0.2313]
[1762132817178,0.139,3857.0,3856.3,0.46894608]
[1762132817482,0.46674,3856.7,3856.6,0.2353]
[1762132818088,0.60816,3856.5,3856.4,3.2078]
[1762132818390,0.83456,3856.5,3856.4,3.2078]
[1762132825086,0.2264,3856.4,3856.3,0.00217608]
[1762132825291,3.4342,3856.4,3856.3,0.00217608]
[1762132825787,11.97872431,3856.4,3856.3,0.00217608]
[1762132825991,0.82578,3855.5,3855.4,3.2078]
[1762132826198,0.1322,3855.5,3855.4,0.2294]
[1762132826385,1.53397761,3855.8,3855.4,0.2294]
[1762132826582,1.53397761,3855.8,3855.7,0.2294]
[1762132826996,0.00296768,3855.8,3855.7,0.23169932]
[1762132827199,0.00296768,3855.8,3855.7,3.43949932]
[1762132828489,10.8128,3857.1,3856.7,0.46673]
[1762132828490,3.67449,3857.1,3856.7,0.46673]
[1762132828691,0.46669,3857.1,3857.0,0.2294]
[1762132828986,0.69339,3857.1,3856.6,3.67454]
[1762132829395,0.1322,3857.0,3856.6,3.67454]
[1762132829598,0.1322,3857.0,3856.9,0.2294]
[1762132831699,0.2267,3856.7,3856.6,3.2078]
[1762132832202,2.13287761,3857.0,3856.7,0.46674]
[1762132832703,1.66617761,3857.0,3856.9,0.2294]
[1762132833094,0.46673,3856.8,3856.6,3.2078]
[1762132833697,2.13288761,3857.0,3856.6,3.2078]
[1762132833899,1.66617761,3857.0,3856.6,3.2078]
[1762132834098,1.66617761,3857.0,3856.6,3.67454]
[1762132834500,1.66617761,3857.0,3856.8,0.46671]
[1762132834700,0.04513168,3857.9,3857.8,0.2294]
[1762132834701,3.25293168,3857.9,3857.8,0.2294]
[1762132835007,0.46654,3858.4,3857.9,0.46659]
[1762132835209,0.46654,3858.4,3858.2,0.2294]
[1762132835601,0.1322,3858.5,3858.2,0.2294]
[1762132835899,0.60095914,3858.5,3858.2,0.2294]
[1762132836103,0.60095914,3858.5,3858.0,0.46657]
[1762132836104,0.46656,3858.2,3857.8,3.2078]
[1762132836405,0.13443914,3858.5,3857.8,3.2078]
[1762132836604,0.46657,3858.1,3857.8,3.2078]
[1762132836803,0.46654,3858.3,3857.8,3.2078]
[1762132837305,0.46657,3858.1,3857.8,3.2078]
[1762132837503,0.2267,3857.9,3857.8,3.2078]
[1762132838909,0.46654,3858.4,3858.3,0.2294]
[1762132839205,0.46656,3858.2,3858.1,0.2294]
[1762132839412,0.46653,3858.4,3858.1,0.2294]
[1762132839716,0.46655,3858.3,3858.1,0.2294]
[1762132840120,0.1322,3858.0,3857.8,3.2078]
[1762132840413,0.00223914,3858.5,3858.4,0.2294]
[1762132841813,0.46653,3858.4,3857.8,3.2078]
[1762132842009,0.46653,3858.4,3857.8,3.67439]
[1762132842714,0.46653,3858.4,3857.9,0.46658]
[1762132843015,0.00223914,3858.5,3858.4,0.2294]
[1762132847012,0.46656,3858.2,3857.9,3.842]
[1762132847418,0.46656,3858.2,3858.1,0.214]
[1762132848016,0.60625914,3858.5,3858.1,0.214]
[1762132848319,0.46654,3858.4,3858.1,0.214]
[1762132848616,0.13973914,3858.5,3858.1,0.214]
[1762132848812,0.60625914,3858.5,3858.1,0.214]
[1762132849212,0.46655,3858.3,3858.1,0.214]
[1762132849613,0.60625914,3858.5,3858.1,0.214]
[1762132849812,0.46653,3858.4,3858.1,0.214]
[1762132850014,0.46655,3858.3,3858.1,0.214]
[1762132850214,0.46655,3858.3,3858.2,0.214]
[1762132850518,0.83165914,3858.5,3858.4,0.214]
[1762132850714,0.46654,3858.4,3857.9,4.30859]
[1762132851215,0.3629,3858.0,3857.9,3.842]
[1762132851413,0.69199,3857.9,3857.8,3.2078]
[1762132851617,0.2254,3857.4,3857.3,3.2078]
[1762132852117,0.1375,3857.5,3857.3,3.4218]
[1762132852320,0.46663,3857.6,3857.5,0.214]
[1762132854419,0.46665,3857.4,3857.3,3.4218]
[1762132855115,0.46663,3857.6,3857.3,3.4218]
[1762132855321,1.53397761,3857.8,3857.3,3.4218]
[1762132855520,0.69202,3857.7,3857.6,0.214]
[1762132855822,1.53397761,3857.8,3857.3,3.4218]
[1762132855823,0.46665,3857.4,3857.3,3.4218]
[1762132856019,0.69205,3857.4,3857.3,3.2078]
[1762132856322,0.2254,3856.9,3856.8,3.2078]
[1762132857619,0.60421,3857.0,3856.8,3.4218]
[1762132857819,0.46671,3857.0,3856.9,0.214]
[1762132858408,1.53397761,3857.2,3856.9,0.214]
[1762132858609,0.46669,3857.1,3857.0,0.214]
[1762132859124,0.69211,3856.9,3856.8,3.2078]
[1762132861232,0.46676,3856.5,3856.4,3.4218]
[1762132861434,0.34669523,3857.0,3856.4,3.4218]
[1762132862121,1.53397761,3857.2,3857.1,0.214]
[1762132862325,3.2078,3857.3,3857.2,0.214]
[1762132862534,0.46664,3857.5,3857.4,0.214]
[1762132862825,0.46662,3857.7,3857.4,0.214]
[1762132863025,4.74177761,3857.8,3857.7,0.214]
[1762132863220,6.9925,3858.0,3857.7,0.214]
[1762132863425,1.53397761,3858.4,3858.3,0.214]
[1762132863426,0.46653,3858.4,3858.3,0.214]
[1762132863820,0.00223914,3858.5,3858.4,0.214]
[1762132864222,0.54890532,3858.5,3858.4,0.214]
[1762132864424,0.00223914,3858.5,3858.4,0.214]
[1762132867332,0.46658,3858.0,3857.9,3.2078]
[1762132867532,2.00055761,3858.0,3857.9,3.2078]
[1762132867836,2.13805761,3858.0,3857.9,3.2078]
[1762132868433,2.36345761,3858.0,3857.9,3.2078]
[1762132868622,2.36345761,3858.0,3857.5,3.2078]
[1762132868623,0.46663,3857.6,3857.5,3.2078]
[1762132868825,0.46663,3857.6,3857.5,3.4218]
[1762132869128,3.2078,3858.0,3857.9,0.214]
[1762132869335,0.46658,3858.0,3857.9,0.214]
[1762132869934,0.46657,3858.1,3857.9,0.214]
[1762132870527,0.1375,3858.0,3857.5,3.3382]
[1762132870936,0.60409,3858.0,3857.5,3.3382]
[1762132871137,0.46658,3858.0,3857.5,3.3382]
[1762132871340,0.4666,3857.9,3857.8,0.214]
[1762132872233,0.2254,3857.6,3857.5,3.2078]
[1762132873937,0.4666,3857.9,3857.5,3.2078]
[1762132874142,0.4666,3857.9,3857.8,0.214]
[1762132874633,1.67147761,3858.0,3857.8,0.214]
[1762132874835,2.13805761,3858.0,3857.8,0.214]
[1762132875445,2.13805761,3858.0,3857.9,0.214]
[1762132875741,2.00055761,3858.0,3857.9,0.214]
[1762132876044,0.46658,3858.0,3857.9,0.214]
[1762132878438,1.80784762,3858.0,3857.9,0.214]
[1762132879841,0.13973914,3858.5,3858.4,0.2333]
[1762132879842,0.00223914,3858.5,3858.4,0.2333]
[1762132880137,0.54951863,3858.5,3858.4,0.2333]
[1762132880551,0.00223914,3858.5,3858.4,0.2333]
[1762132881949,0.00223914,3858.5,3858.4,3.4411]
[1762132882446,0.46644,3859.2,3859.1,0.2333]
[1762132883437,0.46644,3859.2,3859.1,0.23645079]
[1762132883438,0.46897165,3859.2,3859.1,0.23645079]
[1762132883746,0.69137165,3859.2,3859.1,0.00315079]
[1762132885138,0.46897165,3859.2,3859.1,0.23645079]
[1762132885945,0.00253165,3859.2,3859.1,0.23645079]
[1762132887344,0.23883165,3859.2,3859.1,0.00315079]
[1762132888950,0.23883165,3859.2,3858.0,3.2078]
[1762132888951,0.46656,3858.2,3858.0,3.2078]
[1762132889338,0.2363,3858.1,3858.0,3.2078]
[1762132889742,0.46656,3858.2,3858.0,3.4371]
[1762132889942,0.46656,3858.2,3858.1,0.2293]
[1762132890441,0.2363,3858.1,3858.0,3.21104038]
[1762132890642,1.47396762,3858.5,3858.0,3.44034038]
[1762132890945,0.70287,3858.1,3858.0,3.21104038]
[1762132891839,0.70287,3858.1,3858.0,0.00324038]
[1762132893840,1.24974202,3858.1,3858.0,0.00324038]
[1762132894341,0.70287,3858.1,3858.0,0.00324038]
[1762132897544,1.2495458,3858.1,3858.0,0.00324038]
[1762132897751,0.2363,3856.8,3856.7,3.2078]
[1762132897948,0.46679,3856.3,3855.8,4.59725952]
[1762132898146,0.46679,3856.3,3855.8,3.2078]
[1762132898544,0.4668,3856.2,3856.1,0.2293]
[1762132898741,0.00274459,3856.3,3856.2,0.2293]
[1762132898948,0.00274459,3856.3,3856.2,3.4371]
[1762132907849,0.00274459,3856.3,3856.2,7.2791]
[1762132908156,4.459e-05,3856.3,3856.2,7.2791]
[1762132908352,0.46671,3856.9,3856.6,0.46674]
[1762132908655,0.46671,3856.9,3856.8,0.2295]
[1762132909259,0.46902139,3856.9,3856.8,0.2295]
[1762132910257,0.00231139,3856.9,3856.8,0.2295]
[1762132910655,0.00231139,3856.9,3856.8,0.69622]
[1762132910952,0.00231139,3856.9,3856.8,0.2295]
[1762132912350,0.70072,3856.8,3856.7,7.0498]
[1762132912655,2.04198762,3856.8,3856.7,7.0498]
[1762132913750,1.57526762,3856.8,3856.7,7.0498]
[1762132913950,1.34126762,3856.8,3856.7,7.2793]
[1762132916451,1.34126762,3856.8,3856.7,3.4373]
[1762132918865,1.34126762,3856.8,3856.7,0.2295]
[1762132919960,0.00231139,3856.9,3856.8,0.2295]
[1762132920359,0.83366,3856.5,3856.4,3.2078]
[1762132920567,2.17492762,3856.5,3856.4,3.2078]
[1762132921055,0.1329,3856.0,3855.9,3.2078]
[1762132921261,1.70816762,3856.0,3855.9,3.2078]
[1762132921456,1.29981,3856.5,3856.4,0.2295]
[1762132921457,1.47416762,3856.5,3856.4,0.2295]
[1762132921656,0.46674,3856.7,3856.6,0.2295]
[1762132921853,0.1329,3856.5,3856.0,3.2078]
[1762132922057,0.59966,3856.5,3856.0,3.2078]
[1762132922258,0.46679,3856.3,3856.0,3.2078]
[1762132922461,0.46681,3856.2,3856.0,3.2078]
[1762132922763,0.46678,3856.4,3856.3,0.2295]
[1762132922962,0.1329,3856.5,3856.0,3.80532]
[1762132922963,0.234,3856.1,3856.0,3.2078]
[1762132923264,0.234,3856.1,3855.8,0.00275081]
[1762132923265,0.234,3855.9,3855.8,0.00275081]
[1762132925867,0.78141666,3855.9,3855.8,0.00275081]
[1762132926168,0.234,3855.9,3855.8,0.00275081]
[1762132929276,0.234,3855.9,3855.1,3.2078]